bitfinex/quotes_SOLUSD_20240725
["timestamp","ask_amount","ask_price","bid_price","bid_amount"]
[1721907850374,13.48,168.89,168.81,7.80756884]
[1721907850575,37.07039852,168.94,168.84,13.48]
[1721907850774,13.48,168.9,168.85,13.48]
[1721907851469,35.59,168.93,168.85,13.48]
[1721907851671,13.48,168.91,168.86,13.48]
[1721907852181,13.48,168.91,168.79,27.1267796]
[1721907852182,13.48,168.87,168.79,20.6067796]
[1721907852493,53.92,168.88,168.79,7.1267796]
[1721907852494,13.48,168.83,168.79,7.1267796]
[1721907854375,1.4808821,168.86,168.8,13.48]
[1721907854578,45.0,168.9,168.83,13.48]
[1721907854775,15.5517,168.94,168.84,13.48]
[1721907854776,13.48,168.89,168.84,13.48]
[1721907854979,13.48,168.87,168.82,13.48]
[1721907855190,13.48,168.87,168.79,7.1267796]
[1721907855505,13.48,168.87,168.81,13.48]
[1721907855707,13.48,168.87,168.82,13.48]
[1721907856001,1.48061133,168.92,168.84,13.48]
[1721907856165,13.48,168.89,168.84,13.48]
[1721907856373,35.59,168.93,168.85,13.48]
[1721907856569,13.48,168.89,168.84,13.48]
[1721907856769,1.48031369,168.92,168.86,13.48]
[1721907857003,17.03199278,168.94,168.86,13.48]
[1721907857291,17.03199278,168.94,168.87,13.48]
[1721907857292,13.48,168.92,168.87,13.48]
[1721907858675,1.4801224,168.95,168.87,13.48]
[1721907858987,15.073,168.98,168.9,13.48]
[1721907859209,13.48,168.96,168.91,13.48]
[1721907859577,13.48,168.95,168.9,13.48]
[1721907859775,13.48,168.95,168.89,13.48]
[1721907859988,13.48,168.94,168.86,6.1803]
[1721907860231,7.39815741,168.97,168.87,20.0]
[1721907860505,1.47995741,168.97,168.87,20.0]
[1721907860707,87.98815741,168.97,168.87,20.0]
[1721907862091,82.06995741,168.97,168.87,20.0]
[1721907865072,37.06995741,168.97,168.87,20.0]
[1721907865497,15.073,168.98,168.88,45.0]
[1721907865498,1.47995028,168.98,168.88,45.0]
[1721907865799,35.59,169.01,168.89,35.8065]
[1721907866001,35.59,169.01,168.9,1.1837802]
[1721907867897,41.5069,169.01,168.89,15.8065]
[1721907868203,1.47971083,169.0,168.89,15.8065]
[1721907868389,7.39691083,169.0,168.89,15.8065]
[1721907868583,5.9176,168.99,168.89,15.8065]
[1721907868788,1.47978382,168.98,168.89,15.8065]
[1721907869700,1.47978369,169.0,168.89,15.8065]
[1721907870000,46.47978369,169.0,168.89,15.8065]
[1721907870903,45.0,169.0,168.9,1.18382543]
[1721907871218,35.59,169.01,168.88,45.0]
[1721907871219,15.7028,169.2,168.99,6.0551]
[1721907871395,15.7028,169.2,169.08,26.96]
[1721907871396,51.2928,169.2,169.08,26.96]
[1721907871706,0.1988276,169.25,169.11,26.96]
[1721907871902,0.1988276,169.25,169.14,26.96]
[1721907872093,0.1988276,169.25,169.15,54.50615481]
[1721907872585,0.1988276,169.25,169.17,26.96]
[1721907873483,0.1988276,169.25,169.18,21.18195934]
[1721907873898,0.1988276,169.25,169.2,26.96]
[1721907874109,0.1988276,169.25,169.21,21.181708]
[1721907874493,0.1988276,169.25,169.21,20.0]
[1721907874686,0.1988276,169.25,169.17,21.18170826]
[1721907874887,0.1988276,169.25,169.18,46.18170672]
[1721907875088,0.1988276,169.25,169.19,20.0]
[1721907875485,0.1988276,169.25,169.2,22.83287576]
[1721907875688,0.1988276,169.25,169.21,20.0]
[1721907876213,0.1988276,169.25,169.2,22.83287576]
[1721907876512,0.1988276,169.25,169.1,1.18206473]
[1721907876826,0.1988276,169.25,169.11,1.18210042]
[1721907877292,0.1988276,169.25,169.13,30.21]
[1721907877493,0.1988276,169.25,169.14,1.18187044]
[1721907878312,0.1988276,169.25,169.15,1.18187797]
[1721907878514,0.1988276,169.25,169.15,21.18186757]
[1721907878692,0.1988276,169.25,169.16,45.0]
[1721907878893,0.1988276,169.25,169.17,1.18182532]
[1721907879099,0.1988276,169.25,169.17,20.0]
[1721907879301,0.1988276,169.25,169.18,45.0]
[1721907879502,0.1988276,169.25,169.09,38.66002517]
[1721907879699,1.67651523,169.25,169.1,21.1821501]
[1721907880097,1.67651523,169.25,169.11,1.18214822]
[1721907880800,1.67651523,169.25,169.11,46.18214822]
[1721907881002,1.67651523,169.25,169.12,20.0]
[1721907881513,0.1988276,169.25,169.13,1.18211901]
[1721907881691,1.67647636,169.25,169.13,46.18211901]
[1721907881898,1.67647636,169.25,169.14,20.0]
[1721907882313,0.1988276,169.25,169.14,20.0]
[1721907885807,8.10599337,169.24,169.05,30.21]
[1721907886007,8.10599337,169.24,169.05,31.39239199]
[1721907886008,52.38708999,169.23,169.05,31.39239199]
[1721907886235,5.9097,169.22,169.05,31.39239199]
[1721907886532,5.9108,169.18,169.05,30.21]
[1721907886708,62.91120541,169.21,169.04,6.174]
[1721907886709,1.47828079,169.17,169.04,6.174]
[1721907888023,1.47828079,169.17,169.02,7.64859201]
[1721907888215,5.9116,169.16,169.01,30.21]
[1721907888417,52.39042546,169.15,169.01,30.21]
[1721907888618,1.47852691,169.14,169.01,30.21]
[1721907888925,1.47852691,169.14,169.02,1.18280032]
[1721907889325,45.0,169.18,169.02,46.18280032]
[1721907889511,1.47818962,169.17,169.02,46.18280032]
[1721907889710,1.47818962,169.17,169.03,27.64859201]
[1721907889906,1.47818962,169.17,169.04,46.18256935]
[1721907890113,1.47818962,169.17,169.05,21.18256951]
[1721907890312,1.47818962,169.17,169.06,45.0]
[1721907890616,1.47818962,169.17,169.07,20.0]
[1721907891124,45.0,169.18,169.07,20.0]
[1721907891332,45.0,169.19,169.07,20.0]
[1721907891815,1.4782099,169.18,169.07,20.0]
[1721907892126,1.47808844,169.17,169.07,20.0]
[1721907894110,45.0,169.18,169.07,20.0]
[1721907894311,1.47815756,169.18,169.07,20.0]
[1721907896542,22.343,169.21,169.08,45.0]
[1721907896716,1.47800482,169.2,169.09,20.0]
[1721907897235,7.38840482,169.2,169.09,20.0]
[1721907897416,7.38840482,169.2,169.07,20.0]
[1721907897829,45.0,169.19,169.07,20.0]
[1721907898131,1.47815841,169.18,169.07,20.0]
[1721907898335,1.47815953,169.17,169.07,20.0]
[1721907900129,1.47815908,169.16,169.07,20.0]
[1721907900316,5.9104,169.2,169.07,20.0]
[1721907900513,45.0,169.19,169.07,20.0]
[1721907900726,1.47815944,169.18,169.07,20.0]
[1721907900925,1.47815953,169.17,169.07,20.0]
[1721907901442,1.47815953,169.17,169.06,26.89]
[1721907901616,6.5848,169.16,169.03,26.89]
[1721907901815,52.3905026,169.15,169.03,26.89]
[1721907902017,1.47850154,169.14,169.03,26.89]
[1721907902835,8.06303024,169.2,169.09,26.89]
[1721907903018,8.06303024,169.2,169.1,20.0]
[1721907908625,8.06303024,169.2,169.08,26.89]
[1721907908814,8.06303024,169.2,169.09,20.0]
[1721907915246,8.06276283,169.2,169.09,20.0]
[1721907915546,6.5848,169.2,169.1,45.0]
[1721907915727,6.5848,169.2,169.11,20.0]
[1721907916655,8.06260474,169.2,169.11,20.0]
[1721907916947,8.06260474,169.2,169.08,26.89]
[1721907917156,8.06260474,169.2,169.09,65.0]
[1721907918539,8.06260474,169.2,169.04,43.3232]
[1721907918540,22.0903,169.1,169.03,3.15116443]
[1721907918740,22.0903,169.1,168.83,0.58793]
[1721907918741,5.921,168.89,168.83,0.58793]
[1721907919044,5.9211,168.89,168.83,0.58793]
[1721907919247,62.48,168.92,168.83,1e-08]
[1721907919248,82.12591645,168.88,168.83,1e-08]
[1721907919568,82.12591645,168.88,168.7,33.1265]
[1721907919569,35.59,168.84,168.7,33.1265]
[1721907919770,8.65548046,168.83,168.7,33.1265]
[1721907919974,7.11956401,168.82,168.7,33.1265]
[1721907920125,46.53591645,168.83,168.7,33.1265]
[1721907920126,8.65927454,168.81,168.7,33.1265]
[1721907920332,8.66303077,168.8,168.7,6.2365]
[1721907920540,1.54718552,168.79,168.7,6.2365]
[1721907920759,1.54718552,168.79,168.71,0.57401172]
[1721907921259,1.54718552,168.79,168.73,30.38]
[1721907921465,1.54718552,168.79,168.74,20.57357973]
[1721907921760,1.54718552,168.79,168.75,45.0]
[1721907922251,1.54718552,168.79,168.74,0.57366293]
[1721907923251,1.54718552,168.79,168.74,20.57366293]
[1721907923429,1.54718552,168.79,168.74,65.57366293]
[1721907924238,1.48067529,168.89,168.74,85.57366293]
[1721907924437,1.54718552,168.88,168.75,20.0]
[1721907924635,1.54718552,168.88,168.76,65.57267433]
[1721907924833,1.48052555,168.87,168.76,65.0]
[1721907925039,3.02796238,168.86,168.76,65.0]
[1721907925227,1.48078602,168.85,168.76,65.0]
[1721907925427,1.48082243,168.9,168.76,65.0]
[1721907925623,1.48080008,168.89,168.76,65.0]
[1721907925843,1.54718552,168.85,168.76,65.57309718]
[1721907927126,1.54718552,168.85,168.76,65.0]
[1721907929136,1.54718552,168.85,168.76,20.0]
[1721907929353,1.54718552,168.85,168.73,20.57308636]
[1721907930433,1.48090013,168.84,168.74,45.0]
[1721907930628,1.54718552,168.83,168.75,20.0]
[1721907930848,1.54718552,168.83,168.73,20.0]
[1721907932335,1.54718552,168.83,168.72,0.57386928]
[1721907932652,1.54718552,168.83,168.72,50.95386928]
[1721907932955,1.54718552,168.83,168.73,20.0]
[1721907933137,1.54718552,168.83,168.74,0.57330033]
[1721907933557,1.54718552,168.83,168.74,45.57330033]
[1721907933859,1.54718552,168.83,168.75,20.0]
[1721907934042,1.54718552,168.83,168.76,45.57299011]
[1721907934241,1.54718552,168.83,168.77,20.57299229]
[1721907934645,1.54718552,168.83,168.78,45.0]
[1721907936657,1.54718552,168.83,168.79,0.57288241]
[1721907936889,1.54718552,168.83,168.79,40.57239125]
[1721907937051,1.48040766,168.91,168.8,45.0]
[1721907937248,2.2992825,168.9,168.8,45.0]
[1721907939753,2.2992825,168.9,168.81,20.0]
[1721907945567,2.2992825,168.9,168.82,45.0]
[1721907946095,2.2992825,168.9,168.81,20.0]
[1721907946294,2.2992825,168.9,168.8,20.0]
[1721907947976,1.48050228,168.89,168.8,20.0]
[1721907948158,2.2992825,168.9,168.8,20.0]
[1721907948159,2.2992825,168.88,168.8,20.0]
[1721907955959,2.2992825,168.88,168.81,45.0]
[1721907956271,2.2992825,168.88,168.82,20.0]
[1721907958265,1.48028573,168.94,168.83,45.0]
[1721907958474,1.48028573,168.94,168.84,20.0]
[1721907961865,6.3442,168.95,168.85,26.98]
[1721907962072,1.48007954,168.94,168.86,20.0]
[1721907962287,46.48007954,168.94,168.84,20.0]
[1721907962676,46.48007954,168.94,168.83,20.0]
[1721907963565,46.48007954,168.94,168.79,26.98]
[1721907963566,82.07007954,168.94,168.79,26.98]
[1721907963779,46.48007954,168.94,168.79,26.98]
[1721907964085,46.48007954,168.94,168.79,46.98]
[1721907964299,46.48007954,168.94,168.8,0.5720103]
[1721907964582,7.11691892,168.93,168.79,26.98]
[1721907964763,1.48038327,168.92,168.8,20.0]
[1721907965267,1.48038327,168.92,168.81,45.0]
[1721907965470,1.48038327,168.92,168.82,20.0]
[1721907965673,1.48034121,168.91,168.82,20.0]
[1721907965876,1.48022266,168.93,168.82,20.0]
[1721907966177,6.3442,168.95,168.79,26.98]
[1721907966178,8.59733707,168.92,168.8,20.0]
[1721907966380,1.48032661,168.92,168.81,45.0]
[1721907966589,1.48032661,168.92,168.82,46.98]
[1721907967077,1.48022919,168.94,168.83,45.0]
[1721907967284,1.48022919,168.94,168.84,20.0]
[1721907967665,7.82445618,168.95,168.84,20.0]
[1721907968368,7.11604457,168.94,168.84,20.0]
[1721907968673,7.11604457,168.94,168.85,26.98]
[1721907968871,7.11604457,168.94,168.86,20.0]
[1721907969409,7.82445618,168.95,168.86,20.0]
[1721907970269,6.3442,168.95,168.86,20.0]
[1721907971485,1.48008072,168.94,168.86,20.0]
[1721907971686,8.5962009,168.94,168.86,20.0]
[1721907971987,1.48008072,168.94,168.86,20.0]
[1721907972189,1.48008072,168.94,168.84,20.0]
[1721907972401,46.48008072,168.94,168.83,20.0]
[1721907975989,1.48008072,168.94,168.83,20.0]
[1721907978778,46.48008072,168.94,168.83,20.0]
[1721907979199,1.48008072,168.94,168.83,20.0]
[1721907979899,43.41440061,168.95,168.83,20.0]
[1721907980102,1.48020061,168.93,168.83,20.0]
[1721907980283,1.48029584,168.92,168.83,20.0]
[1721907982182,1.48029584,168.92,168.87,13.48]
[1721907985999,1.48051475,168.89,168.84,13.48]
[1721907986311,14.96051475,168.89,168.84,13.48]
[1721907986802,13.48,168.89,168.84,13.48]
[1721907987005,13.48,168.9,168.85,13.48]
[1721907987187,1.48056648,168.91,168.87,13.48]
[1721907987708,1.48056648,168.91,168.86,13.48]
[1721907987887,14.96028543,168.92,168.86,13.48]
[1721907988905,35.59,168.94,168.8,53.92]
[1721907988906,1.48025292,168.91,168.87,13.48]
[1721907989283,1.48026778,168.92,168.88,13.48]
[1721907990198,1.48026778,168.92,168.8,53.92]
[1721907990199,14.96026778,168.92,168.8,53.92]
[1721907990402,14.96026778,168.92,168.86,13.48]
[1721907990799,13.48,168.91,168.85,13.48]
[1721907990999,1.48033867,168.9,168.85,13.48]
[1721907991199,13.48,168.88,168.78,7.75558624]
[1721907991391,1.48058461,168.87,168.82,13.48]
[1721907993197,1.48058461,168.87,168.83,13.48]
[1721907993600,28.7453,168.89,168.84,13.48]
[1721907993915,15.2653,168.89,168.84,13.48]
[1721907994293,16.74577131,168.89,168.84,13.48]
[1721907994718,15.2653,168.89,168.85,13.48]
[1721907995515,1.48030811,168.9,168.85,13.48]
[1721907996300,1.48030811,168.9,168.86,13.48]
[1721907996816,13.48,168.92,168.86,13.48]
[1721907996817,1.4802944,168.91,168.86,13.48]
[1721907997016,14.9602944,168.91,168.85,13.48]
[1721907997396,1.4802944,168.91,168.86,13.48]
[1721907998014,13.48,168.9,168.8,53.92]
[1721907998213,1.48044459,168.89,168.81,20.0]
[1721907998722,14.96044459,168.89,168.83,13.48]
[1721907999218,13.48,168.89,168.83,13.48]
[1721907999604,13.48,168.89,168.77,17.16848515]
[1721907999605,13.48,168.89,168.84,13.48]
[1721908000001,1.48052388,168.88,168.77,16.596]
[1721908000201,1.48052388,168.88,168.78,20.0]
[1721908000421,13.48,168.88,168.78,20.0]
[1721908000725,13.48,168.88,168.83,13.48]
[1721908002015,13.48,168.88,168.82,13.48]
[1721908003613,1.48056566,168.91,168.82,13.48]
[1721908003811,1.48056566,168.91,168.84,13.48]
[1721908004141,13.48,168.9,168.84,13.48]
[1721908004336,1.48047518,168.89,168.84,13.48]
[1721908005508,1.48047518,168.89,168.85,13.48]
[1721908005727,1.48039427,168.9,168.85,13.48]
[1721908006101,1.48039614,168.91,168.87,13.48]
[1721908007410,30.60853983,168.93,168.87,13.48]
[1721908008749,1.48021471,168.92,168.87,13.48]
[1721908009638,6.3442,168.95,168.89,13.48]
[1721908009839,13.48,168.94,168.89,13.48]
[1721908011645,35.59,168.97,168.9,13.48]
[1721908011818,65.59534009,168.96,168.9,13.48]
[1721908012019,58.48,168.96,168.9,13.48]
[1721908012324,13.48,168.95,168.9,13.48]
[1721908012727,46.4800855,168.96,168.9,13.48]
[1721908012923,13.48,168.95,168.9,13.48]
[1721908017021,13.48,168.95,168.89,13.48]
[1721908018033,13.48,168.95,168.9,13.48]
[1721908018251,59.9600855,168.96,168.9,13.48]
[1721908022046,46.4800855,168.96,168.91,13.48]
[1721908022254,45.0,168.96,168.91,13.48]
[1721908022646,46.48007895,168.96,168.91,13.48]
[1721908024166,58.48,168.96,168.91,13.48]
[1721908024954,58.48,168.96,168.9,13.48]
[1721908025455,13.48,168.95,168.9,13.48]
[1721908026033,45.0,168.96,168.9,13.48]
[1721908026339,59.96008318,168.96,168.91,13.48]
[1721908027059,46.48008318,168.96,168.91,13.48]
[1721908027351,45.0,168.96,168.91,13.48]
[1721908028339,45.0,168.96,168.92,13.48]
[1721908028540,402.68,168.99,168.94,13.48]
[1721908028741,13.48,169.01,168.95,13.48]
[1721908029062,13.48,169.01,168.96,13.48]
[1721908030063,13.48,169.03,168.97,13.48]
[1721908030358,13.48,169.03,168.98,13.48]
[1721908031061,402.68,169.04,168.99,13.48]
[1721908032842,13.48,169.07,169.02,13.48]
[1721908033043,13.48,169.08,169.02,13.48]
[1721908033345,1.47900262,169.1,169.04,13.48]
[1721908033547,14.95900262,169.1,169.05,13.48]
[1721908033748,389.2,169.11,169.06,13.48]
[1721908034438,402.68,169.11,169.06,13.48]
[1721908035743,389.2,169.11,169.06,13.48]
[1721908035954,402.68,169.11,169.06,13.48]
[1721908036564,389.2,169.11,169.07,13.48]
[1721908036945,389.2,169.11,169.08,13.48]
[1721908037141,389.2,169.11,169.09,13.48]
[1721908037345,13.48,169.14,169.09,13.48]
[1721908038262,14.95841711,169.15,169.1,13.48]
[1721908038453,14.95833722,169.16,169.1,13.48]
[1721908038659,13.48,169.16,169.1,13.48]
[1721908038967,13.48,169.16,169.11,13.48]
[1721908039360,402.68,169.17,169.12,13.48]
[1721908040156,389.2,169.17,169.13,13.48]
[1721908040751,14.95799794,169.16,169.1,13.48]
[1721908042178,1.47822495,169.15,169.1,13.48]
[1721908043645,49.07,169.15,169.05,16.6339]
[1721908043852,49.07,169.15,169.05,13.48]
[1721908043853,13.48,169.1,169.05,13.48]
[1721908044052,14.95875018,169.09,169.02,6.581]
[1721908044268,14.95875018,169.09,169.03,13.48]
[1721908044447,13.48,169.1,169.04,13.48]
[1721908044649,389.2,169.13,169.09,13.48]
[1721908044870,13.48,169.14,169.09,13.48]
[1721908045584,13.48,169.18,169.12,13.48]
[1721908046082,13.48,169.17,169.12,13.48]
[1721908046454,14.95812184,169.18,169.12,13.48]
[1721908046651,389.2,169.19,169.13,13.48]
[1721908046867,13.48,169.2,169.14,13.48]
[1721908047169,13.48,169.2,169.15,13.48]
[1721908047357,13.48,169.21,169.16,13.48]
[1721908047565,13.48,169.22,169.17,13.48]
[1721908048379,0.7867576,169.25,169.21,13.48]
[1721908048558,0.7867576,169.25,169.24,13.48]
[1721908049764,0.7867576,169.25,169.23,13.48]
[1721908049959,0.7867576,169.25,169.18,22.1877]
[1721908049960,0.7867576,169.25,169.24,13.48]
[1721908050753,0.7867576,169.25,169.18,22.1877]
[1721908050965,13.48,169.24,169.13,21.7115]
[1721908051159,14.95755569,169.23,169.17,13.48]
[1721908051566,13.48,169.21,169.13,21.7115]
[1721908051765,14.95781828,169.21,169.15,13.48]
[1721908052062,13.48,169.21,169.16,13.48]
[1721908052259,0.7867576,169.25,169.13,21.7115]
[1721908052566,1.47757759,169.24,169.13,21.7115]
[1721908052770,35.59,169.22,169.1,34.66760575]
[1721908052964,82.06797839,169.21,169.1,7.78760575]
[1721908053166,1.47808202,169.2,169.08,22.7138]
[1721908053471,1.47808202,169.2,169.08,30.50140575]
[1721908053661,1.47792485,169.23,169.1,26.88]
[1721908053860,1.47792485,169.23,169.13,26.88]
[1721908054064,46.47792485,169.23,169.13,26.88]
[1721908054262,2.26454261,169.25,169.14,20.0]
[1721908054576,0.7867576,169.25,169.14,20.0]
[1721908054771,1.47766702,169.24,169.14,20.0]
[1721908055165,1.4776692,169.23,169.14,20.0]
[1721908055368,37.85444342,169.25,169.14,20.0]
[1721908055761,2.26444342,169.25,169.14,20.0]
[1721908056471,82.85444342,169.25,169.14,20.0]
[1721908056663,37.85444342,169.25,169.14,20.0]
[1721908057177,37.85444342,169.25,169.08,22.7138]
[1721908057383,35.59,169.22,169.08,49.5938]
[1721908057585,1.47798642,169.21,169.08,49.5938]
[1721908057882,1.47798489,169.2,169.08,50.16037659]
[1721908058079,1.47787953,169.21,169.08,50.16037659]
[1721908058381,1.47786997,169.24,169.08,50.16037659]
[1721908058584,1.47787215,169.23,169.09,65.0]
[1721908058771,82.06787215,169.23,169.09,20.0]
[1721908058983,0.41840128,169.22,169.07,26.88]
[1721908059164,1.47813854,169.21,169.08,20.0]
[1721908059366,1.47813622,169.2,169.08,20.0]
[1721908060085,1.47813622,169.2,169.08,20.56692067]
[1721908060785,1.47813622,169.2,169.08,20.0]
[1721908061087,82.06813622,169.2,169.08,20.0]
[1721908061463,82.06813622,169.2,169.08,20.56694766]
[1721908061667,80.59,169.2,169.08,20.56694334]
[1721908061868,82.06804232,169.2,169.08,20.0]
[1721908062478,80.59,169.2,169.08,20.0]
[1721908062676,80.59,169.2,169.08,20.56664926]
[1721908062874,46.47800634,169.2,169.08,20.56664926]
[1721908063277,82.06800634,169.2,169.08,20.56664926]
[1721908063479,82.06800634,169.2,169.08,20.0]
[1721908064685,35.59,169.18,169.08,20.0]
[1721908064862,82.06839493,169.17,169.06,20.0]
[1721908070769,82.06839493,169.17,169.05,49.6947]
[1721908072074,82.06839493,169.17,169.06,20.0]
[1721908074180,13.45,169.15,169.1,13.45]
[1721908074494,1.47839445,169.15,169.1,13.45]
[1721908074696,1.47839445,169.15,169.11,13.45]
[1721908075490,94.04,169.17,169.11,13.45]
[1721908075701,1.47832795,169.16,169.11,13.45]
[1721908076812,35.59,169.18,169.13,13.45]
[1721908077024,21.3845,169.19,169.15,13.45]
[1721908077212,22.86252637,169.19,169.15,13.45]
[1721908078017,21.3845,169.19,169.15,13.45]
[1721908079520,34.8345,169.19,169.14,13.45]
[1721908081298,21.3845,169.19,169.14,13.45]
[1721908085607,70.4245,169.19,169.14,13.45]
[1721908085793,13.45,169.17,169.12,13.45]
[1721908085997,14.92822472,169.17,169.12,13.45]
[1721908086514,13.45,169.16,169.11,13.45]
[1721908088715,13.45,169.17,169.12,13.45]
[1721908089000,94.04,169.18,169.13,13.45]
[1721908089211,21.3845,169.19,169.14,13.45]
[1721908089722,21.3845,169.19,169.05,45.41173652]
[1721908089723,402.65,169.21,169.16,13.45]
[1721908091008,13.45,169.21,169.16,13.45]
[1721908091199,13.45,169.22,169.17,13.45]
[1721908091902,57.9777,169.23,169.18,13.45]
[1721908092403,13.45,169.24,169.18,13.45]
[1721908092615,0.7867576,169.25,169.2,13.45]
[1721908092824,2.26439433,169.25,169.21,13.45]
[1721908093030,0.7867576,169.25,169.21,13.45]
[1721908094515,0.7867576,169.25,169.22,13.45]
[1721908095810,0.7867576,169.25,169.15,0.56492876]
[1721908095811,0.7867576,169.25,169.24,13.45]
[1721908096204,0.7867576,169.25,169.24,33.45]
[1721908098013,0.7867576,169.25,169.24,78.45]
[1721908098221,0.7867576,169.25,169.24,91.83]
[1721908098617,35.59,169.39,169.24,91.83]
[1721908098618,1.47662321,169.38,169.24,92.39329514]
[1721908098813,1.47662321,169.38,169.25,65.0]
[1721908100010,37.06659175,169.39,169.26,0.56323305]
[1721908100329,37.06659175,169.39,169.27,26.83]
[1721908100528,37.06659175,169.39,169.28,20.0]
[1721908102928,37.06659175,169.39,169.24,26.83]
[1721908103113,35.59,169.36,169.24,26.83]
[1721908103312,82.06676062,169.35,169.24,26.83]
[1721908103720,87.97166062,169.35,169.24,26.83]
[1721908104029,41.4957,169.33,169.23,21.7107]
[1721908104327,82.06701889,169.32,169.23,15.4313]
[1721908104631,82.06701889,169.32,169.21,26.83]
[1721908104927,82.06701889,169.32,169.19,21.3443]
[1721908104928,35.59,169.3,169.19,21.3443]
[1721908105130,82.06733535,169.29,169.19,21.3443]
[1721908107226,1.47733487,169.28,169.19,21.3443]
[1721908107709,1.47733487,169.28,169.2,20.0]
[1721908107915,1.47733487,169.28,169.19,20.0]
[1721908108511,35.59,169.27,169.15,48.5659]
[1721908108716,82.06762829,169.26,169.15,48.5659]
[1721908108920,37.06762829,169.26,169.15,48.5659]
[1721908109126,1.47762829,169.26,169.15,48.5659]
[1721908109730,39.35878278,169.28,169.15,69.13087864]
[1721908109913,39.35878278,169.28,169.16,45.0]
[1721908110540,37.06731907,169.28,169.16,45.0]
[1721908110710,1.47731907,169.28,169.18,26.83]
[1721908110913,1.4772181,169.29,169.19,20.0]
[1721908111114,1.47721882,169.28,169.19,20.0]
[1721908115219,1.47735909,169.27,169.19,20.0]
[1721908115418,80.59,169.29,169.19,20.0]
[1721908115620,1.4772977,169.28,169.19,20.0]
[1721908119131,82.06729897,169.29,169.19,20.0]
[1721908120649,1.47729554,169.28,169.19,20.0]
[1721908122129,424.79,169.3,169.19,20.0]
[1721908122335,1.47719121,169.29,169.19,20.0]
[1721908122738,424.79,169.3,169.19,20.0]
[1721908124433,389.2,169.3,169.2,16.23]
[1721908124836,389.2,169.3,169.21,53.1061]
[1721908125758,1.4770146,169.29,169.21,53.1061]
[1721908126053,1.4770146,169.29,169.21,26.2761]
[1721908126257,82.0070146,169.29,169.21,26.2761]
[1721908126557,80.53,169.29,169.21,26.2761]
[1721908126758,1.47729493,169.28,169.21,26.2761]
[1721908126937,80.53,169.29,169.21,26.2761]
[1721908128355,45.0,169.29,169.21,26.2761]
[1721908128556,80.53,169.29,169.21,26.2761]
[1721908129953,389.2,169.3,169.21,26.2761]
[1721908131366,389.2,169.3,169.22,45.0]
[1721908131745,389.2,169.3,169.23,20.0]
[1721908132778,389.2,169.3,169.22,20.0]
[1721908133566,1.47691905,169.29,169.22,20.0]
[1721908133768,389.2,169.3,169.22,20.0]
[1721908133978,389.2,169.31,169.22,20.0]
[1721908134644,1.47700742,169.3,169.22,20.0]
[1721908134846,424.73,169.31,169.22,20.0]
[1721908135146,82.0072522,169.3,169.22,20.0]
[1721908135462,82.0072522,169.3,169.21,6.2761]
[1721908135666,87.9139522,169.3,169.21,6.2761]
[1721908137166,82.0072522,169.3,169.21,6.2761]
[1721908138361,13.43,169.28,169.23,13.43]
[1721908140252,48.96,169.28,169.21,6.2761]
[1721908140455,13.43,169.26,169.21,6.2761]
[1721908140772,13.43,169.26,169.21,19.7061]
[1721908141745,13.43,169.28,169.22,13.43]